fUST/lending_fUST_20240625
["ID","MTS","AMOUNT","RATE_DAILY","PERIOD"]
[330304291,1719244829937,150.5,0.0001643,62]
[330304292,1719244830275,150.5,0.0001643,62]
[330304293,1719244830347,150.5,0.0001643,62]
[330304294,1719244830423,150.5,0.0001642,62]
[330304295,1719244830549,150.5,0.0001643,62]
[330304296,1719244830585,150.5,0.0001643,62]
[330304297,1719244830830,150.5,0.0001642,62]
[330304298,1719244830858,150.5,0.0001642,62]
[330304299,1719244830963,150.5,0.0001641,62]
[330304300,1719244831053,150.5,0.0001642,62]
[330304301,1719244831088,150.5,0.0001642,62]
[330304302,1719244831456,150.5,0.0001641,62]
[330304303,1719244831492,150.5,0.0001641,62]
[330304304,1719244831523,150.5,0.0001916,62]
[330304305,1719244831558,150.5,0.0001641,62]
[330304306,1719244831608,150.5,0.0001641,62]
[330304307,1719244832168,259.5,0.0001916,62]
[330304308,1719244832196,150.5,0.0001916,62]
[330304309,1719244832225,298.0,0.0001915,62]
[330304310,1719244832260,150.5,0.0001916,62]
[330304311,1719244832518,204.8,0.0001915,62]
[330304312,1719244832715,150.5,0.0001915,62]
[330304313,1719244833195,150.5,0.0001914,62]
[330304314,1719244833677,150.5,0.0002218,62]
[330304315,1719244834222,164.5,0.0002217,62]
[330304317,1719244951744,157.894736,0.00013699,2]
[330304319,1719244977207,1308.0,0.000225,30]
[330304320,1719244994937,3000.0,0.000225,30]
[330304321,1719245118934,153.16,0.000224,31]
[330304322,1719245119060,153.16,0.000224,31]
[330304323,1719245119127,153.16,0.000224,31]
[330304324,1719245119187,153.16,0.000224,31]
[330304325,1719245119243,153.16,0.000224,31]
[330304326,1719245119297,153.16,0.000224,31]
[330304327,1719245119488,153.16,0.000224,31]
[330304328,1719245121212,153.16,0.000224,31]
[330304330,1719245313476,-300.0,0.00014035,2]
[330304331,1719245313511,-469.99521646,0.00014036,2]
[330304332,1719245313737,-769.99521646,0.00014036,2]
[330304333,1719245313779,-399.67302912,0.00014036,2]
[330304342,1719245335954,644.18594775,0.00013936,2]
[330304343,1719245338940,-808.7884857,0.00014036,2]
[330304344,1719245339008,-325.12080835,0.00014036,2]
[330304345,1719245341389,-808.7884857,0.00014036,2]
[330304375,1719245363528,-300.0,0.00014035,2]
[330304376,1719245363561,-547.64244129,0.00014036,2]
[330304377,1719245363682,-847.64244129,0.00014036,2]
[330304378,1719245388431,-208.3392434,0.00014034,2]
[330304379,1719245388473,-673.20889554,0.00014036,2]
[330304380,1719245388526,-879.64853945,0.00014036,2]
[330304421,1719245438202,-300.0,0.00014035,2]
[330304422,1719245438212,-176.96301734,0.00014036,2]
[330304501,1719245462491,1955.4591149,0.00013406,2]
[330304502,1719245464924,705.58178986,0.00013935,2]
[330304503,1719245508879,157.894736,0.00013699,2]
[330304505,1719245597070,3000.0,0.000225,30]
[330304506,1719245611394,563.66270429,0.00013936,2]
[330304507,1719245712156,208.78500633,9.999e-05,2]
[330304508,1719245724395,153.18,0.000224,31]
[330304509,1719245724453,153.18,0.000224,31]
[330304510,1719245724528,153.18,0.000224,31]
[330304511,1719245724581,153.18,0.000224,31]
[330304512,1719245724660,153.18,0.000224,31]
[330304513,1719245724716,153.18,0.000224,31]
[330304514,1719245724846,153.18,0.000224,31]
[330304515,1719245724905,153.18,0.000224,31]
[330304516,1719245894038,493.20486621,0.00013936,2]
[330304517,1719245964150,521.06468489,0.00015099,7]
[330304518,1719246020130,521.06468489,0.00015095,7]
[330304520,1719246102037,157.894736,0.00013699,2]
[330304521,1719246132131,5278.8466527,0.00013701,2]
[330304522,1719246179607,431.55425796,0.00013924,2]
[330304523,1719246195037,3000.0,0.000225,30]
[330304525,1719246328374,153.21,0.000224,31]
[330304526,1719246328433,153.21,0.000224,31]
[330304527,1719246328487,153.21,0.000224,31]
[330304528,1719246328555,153.21,0.000224,31]
[330304529,1719246328614,153.21,0.000224,31]
[330304530,1719246328671,153.21,0.000224,31]
[330304531,1719246328720,153.21,0.000224,31]
[330304532,1719246328778,153.21,0.000224,31]
[330304536,1719246459907,377.60997568,0.00013913,2]
[330304574,1719246607372,-300.0,0.00014005,2]
[330304575,1719246607406,-477.82597608,0.00014006,2]
[330304576,1719246607445,-119.88133093,0.00014006,2]
[330304577,1719246607478,-657.94464515,0.00014006,2]
[330304578,1719246607516,-320.85520791,0.00014006,2]
[330304579,1719246620016,4922.23191349,0.0001378,2]
[330304719,1719246646596,-497.37825058,0.00014004,2]
[330304720,1719246714017,157.894736,0.00013699,2]
[330304721,1719246721159,300.0,0.00014,2]
[330304722,1719246734496,42180.60213988,0.00014,2]
[330304723,1719246736588,330.40872872,0.00013903,2]
[330304724,1719246737760,2040.81356743,0.00014,2]
[330304726,1719246748509,6972.7816651,0.00014,2]
[330304727,1719246750511,150.5,0.0001643,62]
[330304728,1719246751130,173.7,0.0001642,62]
[330304730,1719246781258,300.0,0.00014,2]
[330304731,1719246782315,1487.2316115,0.00014,2]
[330304732,1719246787228,17227.699458,0.00014,2]
[330304733,1719246793583,3000.0,0.000225,30]
[330304734,1719246817656,401.65252924,0.00014,2]
[330304736,1719246875469,195.47966853,9.999e-05,2]
[330304738,1719246912977,195.47966853,0.0001212,2]
[330304754,1719246931478,153.24,0.000224,31]
[330304755,1719246931549,153.24,0.000224,31]
[330304756,1719246931653,153.24,0.000224,31]
[330304757,1719246931744,153.24,0.000224,31]
[330304759,1719246963340,195.47966853,0.0001212,2]
[330304760,1719246976920,191.85,0.00010959,2]
[330304761,1719246985371,292.99777244,9.999e-05,2]
[330304762,1719246987622,159.87,0.00010959,2]
[330304763,1719246998199,799.38,0.00010959,2]
[330304764,1719247012963,195.47966853,0.00013283,2]
[330304768,1719247032866,292.99777244,0.00013283,2]
[330304773,1719247052898,3923.79380923,0.00014,2]
[330304774,1719247105908,236.15,0.00014,2]
[330304775,1719247110373,150.5,0.0001643,62]
[330304776,1719247110929,287.67,0.0001642,62]
[330304780,1719247120401,5394.11361938,0.00013956,2]
[330304781,1719247166849,18197.8139696,0.0001362,2]
[330304782,1719247175481,3000.0,0.00013699,2]
[330304783,1719247178252,207.71530322,9.999e-05,2]
[330304784,1719247228392,670.0794151,0.00013778,2]
[330304789,1719247257849,370.93107643,0.00025,60]
[330304790,1719247264296,16218.68524789,0.0001212,2]
[330304791,1719247278841,157.894736,0.00013699,2]
[330304792,1719247281508,567.15112247,0.0001212,2]
[330304793,1719247287093,656.2,0.00010959,2]
[330304794,1719247287161,159.71453487,0.0001212,2]
[330304795,1719247297662,546.84,0.00010959,2]
[330304796,1719247305505,299.01453102,0.00013938,2]
[330304797,1719247308192,455.7,0.00010959,2]
[330304798,1719247318749,379.75,0.00010959,2]
[330304799,1719247329340,316.46,0.00010959,2]
[330304801,1719247339982,263.71,0.00010959,2]
[330304802,1719247345632,162.19541868,0.00013283,4]
[330304803,1719247346465,250.0,0.00013355,2]
[330304804,1719247350604,219.76,0.00010959,2]
[330304805,1719247361292,183.13,0.00010959,2]
[330304806,1719247361939,309.80500161,0.00013283,2]
[330304807,1719247371867,152.61,0.00010959,2]
[330304808,1719247373601,188.94644421,0.00013283,2]
[330304809,1719247382500,763.09,0.00010959,2]
[330304810,1719247382721,16218.68524789,0.00010959,2]
[330304811,1719247383310,6765.2952856,0.00013699,2]
[330304812,1719247432971,154.97675349,0.00013699,2]
[330304813,1719247451397,430.9462521,0.00013601,2]
[330304814,1719247479737,16218.68524789,0.00013699,2]
[330304815,1719247525028,154.97675349,0.00013699,2]
[330304816,1719247534411,153.27,0.000224,31]
[330304817,1719247534473,153.27,0.000224,31]
[330304818,1719247534529,153.27,0.000224,31]
[330304819,1719247534592,153.27,0.000224,31]
[330304820,1719247547563,11118.98907716,0.00014,2]
[330304821,1719247561140,300.0,0.00014,2]
[330304822,1719247573364,181.60390809,0.00014,2]
[330304823,1719247590368,181.60390809,0.00014,2]
[330304824,1719247590753,9823.54261151,0.00014,2]
[330304825,1719247593654,233.0732411,0.00013058,2]
[330304826,1719247597655,721.814171,0.00013699,2]
[330304827,1719247599758,4770.34594004,0.00013999,2]
[330304828,1719247601445,933.08575257,9.999e-05,2]
[330304829,1719247622759,2705.85386106,0.00013814,2]
[330304830,1719247629864,181.60390809,0.00014,2]
[330304831,1719247640949,933.08575257,0.0001212,2]
[330304832,1719247651421,200.0,0.00025767,120]
[330304833,1719247661999,155.38523359,0.0001212,2]
[330304834,1719247671003,239.56788705,9.999e-05,2]
[330304835,1719247712185,200.0,0.00024861,120]
[330304836,1719247715765,24900.0,0.00013026,2]
[330304841,1719247772508,277.4810375,0.00013699,2]
[330304857,1719247779583,-780.41127043,0.00014001,2]
[330304858,1719247779630,-666.82240695,0.00014001,2]
[330304859,1719247791002,212.95733912,0.00013026,2]
[330304864,1719247804783,-184.36291127,0.00014001,2]
[330304865,1719247804816,-565.7116958,0.00014001,2]
[330304867,1719247804854,-59.28133691,0.00014001,2]
[330304869,1719247804899,-240.71866309,0.00014001,2]
[330304870,1719247804932,-300.0,0.00014001,2]
[330304871,1719247804967,-99.27630636,0.00014002,2]
[330304927,1719247833156,-9502.5158253,0.00014002,2]
[330304928,1719247833165,-17227.699458,0.00014003,2]
[330304929,1719247833175,-11567.39029507,0.00014003,2]
[330304942,1719247839186,-6516.0719154,0.00014001,2]
[330304951,1719247840811,-10711.6275426,0.00014001,2]
[330304953,1719247840822,-30613.21184481,0.00014003,2]
[330304955,1719247840832,-1268.75607856,0.00014003,2]
[330304957,1719247840842,-500.0,0.00014026,2]
[330304958,1719247840851,-1284.46803157,0.00014038,2]
[330304959,1719247840864,-299.18155408,0.00014038,2]
[330304960,1719247840874,-1913.6932576,0.00014075,2]
[330304961,1719247840884,-193.8361128,0.00014176,2]
[330304962,1719247840894,-155.02979525,0.00015,2]
[330304963,1719247840904,-358.3040593,0.00015,2]
[330304964,1719247840915,-947.4992689,0.00015,2]
[330304965,1719247840925,-1593.05209417,0.00015,2]
[330304966,1719247840935,-26057.44447196,0.00015,2]
[330304968,1719247840945,-208.3392434,0.00015038,2]
[330304969,1719247840955,-2237.29898741,0.00015038,2]
[330304970,1719247840964,-179.54081427,0.00015039,2]
[330304971,1719247840974,-723.78639686,0.00015039,2]
[330304972,1719247840984,-6972.7816651,0.00015039,2]
[330304973,1719247840994,-286.39912426,0.00015039,2]
[330304974,1719247841003,-457.45943987,0.00015039,2]
[330304975,1719247841013,-516.79936011,0.0001504,2]
[330304976,1719247841023,-2647.51345546,0.0001504,2]
[330304977,1719247841032,-1000.0,0.0001505,2]
[330304978,1719247841042,-159.35965211,0.0001505,2]
[330304979,1719247841051,-318.0694556,0.0001505,2]
[330304981,1719247841061,-154.97675349,0.0001505,2]
[330304983,1719247841071,-1000.0,0.00015051,2]
[330304985,1719247841081,-1000.0,0.00015051,2]
[330304987,1719247841092,-164.81209326,0.00015099,2]
[330304989,1719247841112,-153.0,0.000151,2]
[330304991,1719247841122,-150.0,0.00015325,2]
[330304993,1719247841132,-876.0,0.00015325,2]
[330304995,1719247841143,-306.0,0.00015339,2]
[330304997,1719247841152,-153.0,0.000154,2]
[330304999,1719247841163,-154.97675349,0.000154,2]
[330305001,1719247841172,-420.0,0.00015401,2]
[330305003,1719247841185,-620.00000598,0.00015483,2]
[330305005,1719247841196,-153.0,0.000155,2]
[330305008,1719247841207,-153.0,0.000155,2]
[330305010,1719247841216,-306.0,0.000155,2]
[330305012,1719247841226,-500.00000198,0.000155,2]
[330305014,1719247841236,-1000.0,0.00015522,2]
[330305015,1719247841246,-469.796252,0.00015523,2]
[330305018,1719247841256,-469.796252,0.00015523,2]
[330305020,1719247841266,-1000.0,0.00015523,2]
[330305022,1719247841278,-1000.0,0.00015523,2]
[330305024,1719247841287,-486.621086,0.00015523,2]
[330305026,1719247841297,-151.0,0.00015523,2]
[330305028,1719247841306,-208.78500633,0.00015523,2]
[330305030,1719247841316,-521.06468489,0.00015523,7]
[330305032,1719247841326,-224.913926,0.00015524,2]
[330305034,1719247841335,-224.913926,0.00015524,2]
[330305036,1719247841345,-151.0,0.00015524,2]
[330305038,1719247841360,-151.0,0.00015524,2]
[330305040,1719247841370,-208.789245,0.00015524,2]
[330305042,1719247841380,-208.789245,0.00015524,2]
[330305044,1719247841390,-1313.011853,0.00015652,2]
[330305046,1719247841399,-490.28883306,0.00015653,2]
[330305048,1719247841410,-990.65106447,0.00015653,2]
[330305050,1719247841420,-3923.79380923,0.00015653,2]
[330305052,1719247841430,-154.97675349,0.00015654,2]
[330305054,1719247841442,-151.0,0.00015663,2]
[330305056,1719247841452,-209.426618,0.00015663,2]
[330305057,1719247841462,-151.0,0.00015663,2]
[330305058,1719247841471,-151.0,0.00015663,2]
[330305059,1719247841480,-151.0,0.00015663,2]
[330305060,1719247841489,-155.282739,0.00015663,2]
[330305061,1719247841499,-155.282739,0.00015663,2]
[330305062,1719247841508,-568.34065865,0.00015663,2]
[330305063,1719247841517,-550.22191672,0.00015663,2]
[330305064,1719247841526,-151.0,0.00015664,2]
[330305065,1719247841535,-151.0,0.00015664,2]
[330305066,1719247841544,-155.00852547,0.00015669,2]
[330305067,1719247841553,-500.0,0.0001567,2]
[330305068,1719247841563,-1000.0,0.00016,5]
[330305069,1719247841572,-499.99999901,0.00016,2]
[330305070,1719247841581,-469.796252,0.00016,2]
[330305071,1719247841590,-469.796252,0.00016,2]
[330305072,1719247841600,-151.0,0.00016,2]
[330305073,1719247841616,-364.325469,0.00016,2]
[330305074,1719247841625,-364.325469,0.00016,2]
[330305075,1719247841634,-1066.489976,0.00016,2]
[330305076,1719247841646,-1066.489976,0.00016,2]
[330305077,1719247841655,-297.07955286,0.00016169,2]
[330305078,1719247841664,-165.24465149,0.0001617,2]
[330305079,1719247841674,-163.24602926,0.0001617,2]
[330305080,1719247841683,-401.65252924,0.0001617,2]
[330305081,1719247841692,-154.97675349,0.00016171,2]
[330305082,1719247841703,-849.89124675,0.00016172,2]
[330305083,1719247841712,-2129.2320514,0.00016172,2]
[330305084,1719247841721,-1568.46393602,0.00016173,2]
[330305085,1719247841730,-259.39180364,0.00016173,2]
[330305086,1719247841738,-292.99777244,0.00016175,2]
[330305087,1719247841747,-224.913926,0.00016178,2]
[330305088,1719247841756,-224.913926,0.00016178,2]
[330305089,1719247841764,-151.0,0.00016178,2]
[330305090,1719247841774,-208.789245,0.00016178,2]
[330305091,1719247841782,-208.789245,0.00016178,2]
[330305092,1719247841791,-262.403375,0.0001618,2]
[330305093,1719247841800,-151.0,0.0001618,2]
[330305094,1719247841809,-151.0,0.0001618,2]
[330305095,1719247841817,-155.282739,0.0001618,2]
[330305096,1719247841826,-155.282739,0.0001618,2]
[330305097,1719247841835,-207.71530322,0.00016181,2]
[330305098,1719247841844,-151.0,0.00016182,2]
[330305099,1719247841854,-151.0,0.00016182,2]
[330305100,1719247841864,-151.0,0.00016182,2]
[330305101,1719247841873,-151.0,0.00016192,2]
[330305102,1719247841882,-151.0,0.00016192,2]
[330305103,1719247841892,-469.796252,0.000162,2]
[330305104,1719247841901,-469.796252,0.000162,2]
[330305105,1719247841910,-151.0,0.000162,2]
[330305106,1719247841921,-364.325469,0.000162,2]
[330305107,1719247841930,-364.325469,0.000162,2]
[330305108,1719247841940,-1066.489976,0.000162,2]
[330305109,1719247841950,-1066.489976,0.000162,2]
[330305110,1719247841960,-224.913926,0.00016201,2]
[330305111,1719247841970,-224.913926,0.00016201,2]
[330305112,1719247841980,-208.789245,0.00016201,2]
[330305113,1719247841989,-208.789245,0.00016201,2]
[330305114,1719247841999,-364.325469,0.00016201,2]
[330305115,1719247842008,-364.325469,0.00016201,2]
[330305116,1719247842017,-1066.489976,0.00016201,2]
[330305117,1719247842026,-1066.489976,0.00016201,2]
[330305118,1719247842035,-620.0000003,0.00016257,2]
[330305119,1719247842045,-198.190036,0.00016269,2]
[330305120,1719247842055,-151.0,0.00016269,2]
[330305121,1719247842064,-151.0,0.00016269,2]
[330305122,1719247842073,-151.0,0.00016269,2]
[330305123,1719247842083,-155.282739,0.00016269,2]
[330305124,1719247842096,-155.282739,0.00016269,2]
[330305125,1719247842108,-151.0,0.00016271,2]
[330305126,1719247842117,-155.58326196,0.00016273,2]
[330305127,1719247842126,-627.00448647,0.00016292,2]
[330305128,1719247842137,-176.00680323,0.00016292,2]
[330305129,1719247842146,-151.0,0.00016293,2]
[330305130,1719247842156,-151.0,0.00016293,2]
[330305131,1719247842167,-195.47966853,0.00016297,2]
[330305132,1719247842183,-151.0,0.00016298,2]
[330305133,1719247842193,-306.52857209,0.00016336,2]
[330305134,1719247842203,-933.08575257,0.00016336,2]
[330305135,1719247842213,-239.56788705,0.00016336,2]
[330305136,1719247842223,-1000.0,0.00016337,2]
[330305137,1719247842232,-2000.0,0.00016338,2]
[330305138,1719247842347,-151.0,0.00016437,2]
[330305139,1719247842359,-1000.0,0.00016437,2]
[330305140,1719247842368,-1000.0,0.00016437,2]
[330305141,1719247842378,-418.71,0.00016437,2]
[330305142,1719247842387,-924.72,0.00016438,2]
[330305143,1719247842396,-500.0,0.00016438,2]
[330305144,1719247842405,-500.0,0.00016438,2]
[330305145,1719247842415,-500.0,0.00016438,2]
[330305146,1719247842424,-500.0,0.00016438,2]
[330305147,1719247842434,-151.0,0.00016438,2]
[330305148,1719247842445,-151.0,0.00016438,2]
[330305149,1719247842454,-151.0,0.00016438,2]
[330305150,1719247842464,-154.706229,0.00016438,2]
[330305151,1719247842473,-151.0,0.00016438,2]
[330305152,1719247842484,-500.0,0.00016438,2]
[330305153,1719247842494,-531.41252331,0.00016438,2]
[330305154,1719247842503,-250.0,0.00016438,2]
[330305155,1719247842512,-500.0,0.00016438,2]
[330305156,1719247842521,-826.74,0.00016438,2]
[330305157,1719247842531,-500.0,0.00016438,2]
[330305158,1719247842540,-500.0,0.00016438,2]
[330305159,1719247842549,-500.0,0.00016438,2]
[330305160,1719247842558,-500.0,0.00016438,2]
[330305161,1719247842567,-500.0,0.00016438,2]
[330305162,1719247842576,-500.0,0.00016438,2]
[330305163,1719247842587,-500.0,0.00016438,2]
[330305164,1719247842596,-500.0,0.00016438,2]
[330305165,1719247842606,-500.0,0.00016438,2]
[330305166,1719247842615,-500.0,0.00016438,2]
[330305167,1719247842624,-500.0,0.00016438,2]
[330305168,1719247842633,-500.0,0.00016438,2]
[330305169,1719247842643,-500.0,0.00016438,2]
[330305170,1719247842652,-204.51626241,0.00016438,2]
[330305171,1719247842662,-500.0,0.00016438,2]
[330305172,1719247842671,-500.0,0.00016438,2]
[330305173,1719247842681,-500.0,0.00016438,2]
[330305174,1719247842690,-151.0,0.00016438,2]
[330305175,1719247842699,-151.0,0.00016438,2]
[330305176,1719247842708,-151.0,0.00016438,2]
[330305177,1719247842717,-151.0,0.00016438,2]
[330305178,1719247842726,-516.01327769,0.00016438,2]
[330305179,1719247842735,-152.422054,0.00016438,2]
[330305180,1719247842744,-516.47277608,0.00016438,2]
[330305181,1719247842753,-500.0,0.00016438,2]
[330305182,1719247842763,-512.59428248,0.00016438,2]
[330305183,1719247842772,-500.0,0.00016438,2]
[330305184,1719247842782,-502.022016,0.00016438,2]
[330305185,1719247842791,-500.0,0.00016438,2]
[330305186,1719247842800,-500.0,0.00016438,2]
[330305187,1719247842810,-500.0,0.00016438,2]
[330305188,1719247842820,-500.0,0.00016438,2]
[330305189,1719247842829,-500.0,0.00016438,2]
[330305190,1719247842838,-500.0,0.00016438,2]
[330305191,1719247842848,-500.0,0.00016438,2]
[330305192,1719247842862,-500.0,0.00016438,2]
[330305193,1719247842871,-500.0,0.00016438,2]
[330305194,1719247842882,-500.0,0.00016438,2]
[330305195,1719247842891,-519.78098807,0.00016438,2]
[330305196,1719247842900,-500.0,0.00016438,2]
[330305197,1719247842910,-500.0,0.00016438,2]
[330305198,1719247842919,-543.06222572,0.00016438,2]
[330305199,1719247842928,-500.0,0.00016438,2]
[330305200,1719247842938,-500.0,0.00016438,2]
[330305201,1719247842947,-342.46783519,0.00016438,2]
[330305202,1719247842957,-500.0,0.00016438,2]
[330305203,1719247842966,-500.0,0.00016438,2]
[330305204,1719247842975,-500.0,0.00016438,2]
[330305205,1719247842984,-500.0,0.00016438,2]
[330305206,1719247842993,-526.84529485,0.00016438,2]
[330305207,1719247843003,-500.0,0.00016438,2]
[330305208,1719247843012,-500.0,0.00016438,2]
[330305209,1719247843022,-504.31058173,0.00016438,2]
[330305210,1719247843031,-500.0,0.00016438,2]
[330305211,1719247843040,-500.0,0.00016438,2]
[330305212,1719247843050,-500.0,0.00016438,2]
[330305213,1719247843059,-151.0,0.00016438,2]
[330305214,1719247843069,-151.0,0.00016438,2]
[330305215,1719247843079,-500.0,0.00016438,2]
[330305216,1719247843089,-500.0,0.00016438,2]
[330305217,1719247843101,-861.4,0.00016438,2]
[330305218,1719247843116,-500.73438226,0.00016438,2]
[330305219,1719247843125,-500.0,0.00016438,2]
[330305220,1719247843136,-500.0,0.00016438,2]
[330305221,1719247843145,-540.03225867,0.00016438,2]
[330305222,1719247843154,-500.0,0.00016438,2]
[330305223,1719247843163,-500.0,0.00016438,2]
[330305224,1719247843172,-500.0,0.00016438,2]
[330305225,1719247843183,-500.0,0.00016438,2]
[330305227,1719247843193,-500.0,0.00016438,2]
[330305228,1719247843202,-500.0,0.00016438,2]
[330305230,1719247843211,-500.0,0.00016438,2]
[330305231,1719247843221,-500.0,0.00016438,2]
[330305232,1719247843230,-523.45522967,0.00016438,2]
[330305233,1719247843240,-500.0,0.00016438,2]
[330305234,1719247843249,-171.53277044,0.00016438,2]
[330305235,1719247843259,-500.0,0.00016438,2]
[330305236,1719247843271,-503.72436098,0.00016438,2]
[330305237,1719247843282,-500.19906233,0.00016438,2]
[330305238,1719247843293,-500.0,0.00016438,2]
[330305239,1719247843302,-500.0,0.00016438,2]
[330305240,1719247843312,-500.0,0.00016438,2]
[330305241,1719247843322,-500.0,0.00016438,2]
[330305242,1719247843332,-512.28712344,0.00016438,2]
[330305246,1719247843342,-500.0,0.00016438,2]
[330305248,1719247843352,-500.0,0.00016438,2]
[330305250,1719247843368,-506.4039236,0.00016438,2]
[330305252,1719247843377,-500.0,0.00016438,2]
[330305254,1719247843387,-500.0,0.00016438,2]
[330305256,1719247843396,-500.0,0.00016438,2]
[330305258,1719247843405,-500.0,0.00016438,2]
[330305260,1719247843414,-500.0,0.00016438,2]
[330305262,1719247843423,-266.31823188,0.00016438,2]
[330305264,1719247843432,-500.0,0.00016438,2]
[330305266,1719247843443,-500.0,0.00016438,2]
[330305268,1719247843452,-500.0,0.00016438,2]
[330305270,1719247843462,-500.0,0.00016438,2]
[330305272,1719247843471,-500.0,0.00016438,2]
[330305273,1719247843480,-500.0,0.00016438,2]
[330305275,1719247843490,-500.0,0.00016438,2]
[330305276,1719247843500,-567.64,0.00016438,2]
[330305277,1719247843509,-500.0,0.00016438,2]
[330305280,1719247843519,-500.0,0.00016438,2]
[330305283,1719247843528,-500.0,0.00016438,2]
[330305285,1719247843537,-1547.06,0.00016438,2]
[330305287,1719247843547,-500.0,0.00016438,2]
[330305290,1719247843556,-509.45202368,0.00016438,2]
[330305292,1719247843565,-500.0,0.00016438,2]
[330305293,1719247843574,-506.63371933,0.00016438,2]
[330305295,1719247843583,-500.0,0.00016438,2]
[330305297,1719247843592,-500.0,0.00016438,2]
[330305298,1719247843602,-500.0,0.00016438,2]
[330305299,1719247843614,-500.0,0.00016438,2]
[330305300,1719247843623,-1278.79,0.00016438,2]
[330305301,1719247843632,-500.0,0.00016438,2]
[330305302,1719247843642,-500.0,0.00016438,2]
[330305304,1719247843651,-500.0,0.00016438,2]
[330305306,1719247843660,-563.92,0.00016438,2]
[330305308,1719247843670,-500.0,0.00016438,2]
[330305309,1719247843680,-500.0,0.00016438,2]
[330305310,1719247843689,-500.0,0.00016438,2]
[330305311,1719247843700,-500.0,0.00016438,2]
[330305312,1719247843709,-500.0,0.00016438,2]
[330305313,1719247843718,-500.0,0.00016438,2]
[330305314,1719247843728,-500.0,0.00016438,2]
[330305315,1719247843737,-530.42,0.00016438,2]
[330305316,1719247843746,-164.44727631,0.00016438,2]
[330305317,1719247843755,-546.65654302,0.00016438,2]
[330305318,1719247843764,-500.0,0.00016438,2]
[330305319,1719247843774,-500.0,0.00016438,2]
[330305320,1719247843783,-500.0,0.00016438,2]
[330305321,1719247843792,-500.0,0.00016438,2]
[330305322,1719247843802,-500.0,0.00016438,2]
[330305323,1719247843811,-500.0,0.00016438,2]
[330305324,1719247843820,-500.0,0.00016438,2]
[330305325,1719247843830,-500.0,0.00016438,2]
[330305326,1719247843839,-500.0,0.00016438,2]
[330305327,1719247843848,-500.0,0.00016438,2]
[330305328,1719247843862,-1023.77,0.00016438,2]
[330305329,1719247843871,-500.0,0.00016438,2]
[330305330,1719247843880,-500.0,0.00016438,2]
[330305331,1719247843889,-500.0,0.00016438,2]
[330305332,1719247843899,-500.0,0.00016438,2]
[330305333,1719247843908,-500.0,0.00016438,2]
[330305334,1719247843917,-500.0,0.00016438,2]
[330305335,1719247843927,-500.0,0.00016438,2]
[330305336,1719247843936,-500.0,0.00016438,2]
[330305337,1719247843946,-500.0,0.00016438,2]
[330305338,1719247843955,-500.0,0.00016438,2]
[330305339,1719247843965,-726.26,0.00016438,2]
[330305340,1719247843975,-502.74254045,0.00016438,2]
[330305341,1719247843985,-500.0,0.00016438,2]